fUSD/lending_fUSD_20240803
["ID","MTS","AMOUNT","RATE_DAILY","PERIOD"]
[334025511,1722690639695,-391.951146,0.00011,2]
[334025512,1722690639744,-2925.98626232,0.00011,2]
[334025513,1722690639755,-602.43099611,0.00011,2]
[334025514,1722690639767,-4125.98200796,0.00011,2]
[334025515,1722690639781,-18278.57933545,0.00011,2]
[334025516,1722690639798,-38721.42066455,0.00011,2]
[334025517,1722690639809,-505.85494623,0.00011,2]
[334025518,1722690639828,-3015.37057037,0.00011,2]
[334025519,1722690639861,-191580.20999975,0.00011,2]
[334025520,1722690639873,-1300.34,0.00011,2]
[334025521,1722690639980,-6200.1,0.00011,2]
[334025522,1722690639991,-998.486475,0.00011,2]
[334025523,1722690640003,-3383.5,0.00011,2]
[334025524,1722690640018,-54949.59560973,0.00011,2]
[334025525,1722690640031,-33015.27267814,0.00011,2]
[334025533,1722690642662,-1006536.37646764,0.00011,2]
[334025534,1722690642672,-250.0,0.00011,2]
[334025536,1722690642682,-15974.17660674,0.00011,2]
[334025538,1722690642695,-2783.23162288,0.00011,2]
[334025540,1722690642704,-216.76839712,0.00011,2]
[334025541,1722690642718,-1783.23160288,0.00011,2]
[334025542,1722690642727,-200.0,0.00011,2]
[334025543,1722690642738,-150.99,0.00011,2]
[334025544,1722690642747,-2678.96,0.00011,2]
[334025545,1722690642756,-4054.941,0.00011,2]
[334025546,1722690642766,-1837.14381,0.00011,2]
[334025547,1722690642777,-179.99,0.0001101,2]
[334025548,1722690642786,-155.05435018,0.00011105,2]
[334025549,1722690642795,-828.3,0.00011105,2]
[334025550,1722690642805,-2727.56870853,0.00011105,2]
[334025551,1722690642814,-2943.37552721,0.00011105,2]
[334025552,1722690642823,-155.0,0.00011105,2]
[334025553,1722690642833,-201.56703959,0.00011105,2]
[334025554,1722690642846,-156.46908468,0.00011105,2]
[334025555,1722690642855,-2000.0,0.0001111,2]
[334025556,1722690642866,-200.0,0.0001111,2]
[334025557,1722690642875,-499.99,0.0001111,2]
[334025558,1722690642884,-35697.33254384,0.00011185,2]
[334025559,1722690642893,-499.99,0.00011185,2]
[334025560,1722690642902,-155.0,0.00011186,2]
[334025561,1722690642911,-99012.11956906,0.00011205,2]
[334025562,1722690642920,-2000.0,0.00011221,2]
[334025563,1722690642930,-200.0,0.00011221,2]
[334025564,1722690642939,-150.99,0.00011221,2]
[334025565,1722690642949,-200.0,0.00011273,2]
[334025566,1722690642958,-200.0,0.00011273,2]
[334025567,1722690642968,-383.563368,0.0001129,2]
[334025568,1722690642981,-2000.0,0.00011333,2]
[334025569,1722690642990,-200.0,0.00011333,2]
[334025570,1722690643000,-155.0,0.00011384,2]
[334025571,1722690643010,-155.08846345,0.00011384,2]
[334025572,1722690643019,-960.0,0.00011396,2]
[334025573,1722690643029,-2000.0,0.00011447,2]
[334025574,1722690643038,-200.0,0.00011447,2]
[334025575,1722690643047,-200.0,0.00011548,2]
[334025576,1722690643058,-162.27,0.00011624,2]
[334025577,1722690643068,-530.21131214,0.0001164,2]
[334025579,1722690643078,-530.21131215,0.0001164,2]
[334025580,1722690643087,-173.08,0.00011693,2]
[334025582,1722690643097,-6011.03128096,0.000118,2]
[334025584,1722690643106,-155.0,0.0001185,2]
[334025586,1722690643115,-155.0,0.00011896,2]
[334025588,1722690643125,-367.56511397,0.00011896,2]
[334025590,1722690643134,-155.0,0.00011896,2]
[334025593,1722690643143,-150.23,0.00011949,2]
[334025595,1722690643152,-22639.6617797,0.00011959,2]
[334025598,1722690643162,-25301.89520735,0.00011959,2]
[334025601,1722690643171,-1404.85068933,0.00011959,2]
[334025604,1722690643180,-22639.6617797,0.00011959,2]
[334025606,1722690643190,-550.0,0.00012,2]
[334025608,1722690643199,-296.15,0.000121,2]
[334025610,1722690643208,-365.42577775,0.0001236,2]
[334025612,1722690643217,-155.0,0.0001236,2]
[334025615,1722690643226,-155.0,0.00012391,2]
[334025617,1722690643235,-1795.99273775,0.00012456,2]
[334025620,1722690643245,-15469.99110515,0.00012581,2]
[334025623,1722690643255,-155.0,0.00012581,2]
[334025625,1722690643264,-155.0,0.00012613,2]
[334025627,1722690643274,-960.0,0.00012663,2]
[334025629,1722690643291,-175.38578529,0.00012665,2]
[334025631,1722690643300,-245.00929054,0.00012666,2]
[334025633,1722690643309,-1256.4439005,0.00012666,2]
[334025636,1722690643318,-300.51438893,0.00012681,2]
[334025638,1722690643328,-1500.0,0.00012681,2]
[334025639,1722690643337,-384.00746677,0.0001269,2]
[334025641,1722690643346,-269.71352559,0.0001269,2]
[334025643,1722690643356,-242.37673701,0.0001269,2]
[334025645,1722690643366,-155.0,0.00012696,2]
[334025647,1722690643376,-155.64902819,0.00012696,2]
[334025649,1722690643385,-513.37,0.00012734,2]
[334025651,1722690643395,-284.5851305,0.00012749,2]
[334025653,1722690643405,-500.0,0.00012816,2]
[334025655,1722690643414,-182.59781326,0.00012818,2]
[334025657,1722690643424,-500.0,0.00012825,2]
[334025659,1722690643434,-1049.73016214,0.00012826,2]
[334025660,1722690643443,-500.0,0.00012833,2]
[334025662,1722690643453,-500.0,0.00012842,2]
[334025664,1722690643463,-500.0,0.00012851,2]
[334025666,1722690643472,-500.0,0.0001286,2]
[334025668,1722690643481,-500.0,0.00012869,2]
[334025670,1722690643491,-500.0,0.00012877,2]
[334025672,1722690643500,-155.06451454,0.00012883,2]
[334025674,1722690643509,-155.0,0.00012883,2]
[334025676,1722690643518,-500.0,0.00012886,2]
[334025677,1722690643530,-500.0,0.00012895,2]
[334025679,1722690643539,-500.0,0.00012904,2]
[334025681,1722690643548,-500.0,0.00012913,2]
[334025683,1722690643558,-500.0,0.00012921,2]
[334025685,1722690643567,-500.0,0.0001293,2]
[334025687,1722690643576,-500.0,0.00012939,2]
[334025688,1722690643585,-500.0,0.00012948,2]
[334025690,1722690643594,-500.0,0.00012957,2]
[334025692,1722690643603,-500.0,0.00012965,2]
[334025694,1722690643615,-500.0,0.00012974,2]
[334025696,1722690643625,-500.0,0.00012983,2]
[334025697,1722690643634,-500.0,0.00012992,2]
[334025699,1722690643643,-500.0,0.00013001,2]
[334025701,1722690643652,-500.0,0.00013009,2]
[334025703,1722690643663,-500.0,0.00013018,2]
[334025705,1722690643672,-500.0,0.00013027,2]
[334025707,1722690643681,-500.0,0.00013036,2]
[334025709,1722690643693,-155.0,0.00013066,2]
[334025711,1722690643702,-500.0,0.0001315,2]
[334025713,1722690643711,-500.0,0.00013159,2]
[334025715,1722690643721,-500.0,0.00013168,2]
[334025717,1722690643730,-500.0,0.00013177,2]
[334025718,1722690643739,-500.0,0.00013185,2]
[334025720,1722690643748,-500.0,0.00013194,2]
[334025722,1722690643757,-500.0,0.00013203,2]
[334025724,1722690643767,-162.27,0.00013285,2]
[334025726,1722690643780,-10525.57010213,0.00013378,2]
[334025728,1722690643794,-7317.87163274,0.00013398,2]
[334025730,1722690643804,-7000.0,0.00013489,3]
[334025732,1722690643813,-296.15,0.00013613,2]
[334025734,1722690643822,-5399.26968187,0.00013698,2]
[334025736,1722690643831,-5000.0,0.00013799,2]
[334025738,1722690643840,-5000.0,0.00013799,2]
[334025740,1722690643850,-960.0,0.00013929,2]
[334025742,1722690643859,-212.13,0.00013973,2]
[334025744,1722690643868,-4473.05915228,0.00013989,2]
[334025746,1722690643877,-3118.19667245,0.00013999,2]
[334025748,1722690643887,-3401.38185264,0.00013999,2]
[334025750,1722690643895,-3976.46597667,0.00013999,2]
[334025752,1722690643904,-3342.77710608,0.00013999,2]
[334025769,1722690644076,-58.60474656,0.00013999,2]
[334025771,1722690644086,-600.0,0.00014,2]
[334025773,1722690644095,-1795.99273775,0.00014011,2]
[334025775,1722690644105,-5003.97278669,0.00014058,2]
[334025777,1722690644114,-173.08,0.00014617,2]
[334025779,1722690644123,-2213.01821001,0.00014789,2]
[334025781,1722690644133,-1836.69666447,0.00014899,2]
[334025783,1722690644142,-162.27,0.00014945,2]
[334025785,1722690644151,-2144.08330696,0.00014988,2]
[334025787,1722690644161,-3079.46952702,0.00014988,2]
[334025789,1722690644172,-218.85847551,0.00014988,2]
[334025791,1722690644184,-1055.63456738,0.00014988,2]
[334025793,1722690644193,-513.37,0.00014991,2]
[334025795,1722690644203,-296.15,0.00015125,2]
[334025797,1722690644212,-960.0,0.00015195,2]
[334025799,1722690644222,-1725.0,0.00015369,2]
[334025801,1722690644232,-1795.99273775,0.00015567,2]
[334025803,1722690644242,-719.34566812,0.00015999,2]
[334025805,1722690644251,-1758.50049627,0.00016,2]
[334025807,1722690644263,-78.64332373,0.00016,2]
[334025809,1722690644274,-1183.97736117,0.00016441,2]
[334025811,1722690644284,-1183.97736117,0.00016441,2]
[334025813,1722690644293,-296.15,0.00016638,2]
[334025815,1722690644303,-800.0,0.0001678,2]
[334025817,1722690644312,-500.0,0.0001678,2]
[334025819,1722690644322,-466.43677297,0.0001678,2]
[334025821,1722690644334,-533.56322703,0.0001678,2]
[334025823,1722690644343,-1297.13015026,0.00016799,2]
[334025825,1722690644353,-1173.93825424,0.00016799,2]
[334025827,1722690644364,-123.19189602,0.00016799,2]
[334025829,1722690644374,-1254.34264398,0.00016881,2]
[334025831,1722690644390,-367.85629898,0.00016881,2]
[334025833,1722690644399,-1112.40214539,0.00016882,2]
[334025835,1722690644409,-600.23497476,0.00016882,2]
[334025837,1722690644419,-155.91353429,0.00016897,2]
[334025839,1722690644428,-298.38594994,0.00016897,2]
[334025841,1722690644437,-16.35707356,0.00016948,2]
[334025843,1722690644450,-1121.73951103,0.00016948,2]
[334025845,1722690644459,-842.38504837,0.00016948,2]
[334025847,1722690644471,-333.46085833,0.00016948,2]
[334025849,1722690644481,-9.43212053,0.00016952,2]
[334025852,1722690644493,-1064.30330835,0.00016952,2]
[334025853,1722690644502,-653.07757773,0.00016952,2]
[334025855,1722690644511,-400.85725149,0.00016953,2]
[334025871,1722690644521,-349.40332406,0.00016953,2]
[334025876,1722690644710,-183.44089253,0.00016953,2]
[334025878,1722690644720,-155.0,0.00016953,2]
[334025880,1722690644730,-159.51912708,0.00016953,2]
[334025882,1722690644740,-181.70773519,0.00016999,2]
[334025884,1722690644750,-298.04833193,0.00017004,2]
[334025886,1722690644759,-155.0,0.00017004,2]
[334025888,1722690644769,-158.88829798,0.00017004,2]
[334025890,1722690644779,-518.86884214,0.00017004,2]
[334025892,1722690644789,-155.0,0.00017004,2]
[334025894,1722690644798,-299.24339566,0.00017004,2]
[334025896,1722690644807,-155.02874731,0.00017004,2]
[334025897,1722690644817,-357.14442617,0.00017004,2]
[334025898,1722690644826,-155.82148776,0.00017004,2]
[334025899,1722690644836,-155.66449746,0.00017004,2]
[334025900,1722690644845,-1795.99273775,0.00017122,2]
[334025901,1722690644855,-513.37,0.00017248,2]
[334025902,1722690644865,-155.0,0.00017259,2]
[334025903,1722690644875,-191.81987821,0.00017259,2]
[334025904,1722690644884,-155.85328568,0.00017259,2]
[334025905,1722690644894,-240.23859932,0.00017259,2]
[334025906,1722690644904,-155.0,0.00017259,2]
[334025907,1722690644914,-196.98741999,0.00017259,2]
[334025908,1722690644924,-155.0,0.00017259,2]
[334025909,1722690644933,-155.0,0.00017259,2]
[334025910,1722690644942,-155.27619676,0.00017259,2]
[334025911,1722690644952,-155.0,0.00017259,2]
[334025912,1722690644962,-155.0,0.00017259,2]
[334025913,1722690644971,-155.0,0.00017259,2]
[334025914,1722690644981,-270.32721242,0.00017259,2]
[334025915,1722690644991,-253.33580808,0.00017259,2]
[334025916,1722690645000,-628.09541039,0.00017259,2]
[334025917,1722690645010,-155.54767079,0.00017259,2]
[334025918,1722690645019,-800.0,0.00017328,2]
[334025919,1722690645029,-1000.0,0.00017328,2]
[334025920,1722690645039,-200.0,0.00017362,2]
[334025921,1722690645048,-155.0,0.0001738,2]
[334025922,1722690645057,-628.09541039,0.0001738,2]
[334025923,1722690645067,-155.0,0.0001738,2]
[334025924,1722690645076,-247.37395801,0.0001738,2]
[334025925,1722690645086,-155.0,0.0001738,2]
[334025926,1722690645095,-265.21397656,0.0001738,2]
[334025927,1722690645105,-200.0,0.0001738,2]
[334025928,1722690645115,-722.78328973,0.0001738,2]
[334025929,1722690645124,-184.13772259,0.0001738,2]
[334025930,1722690645134,-155.0,0.0001738,2]
[334025931,1722690645143,-155.0,0.0001738,2]
[334025932,1722690645155,-167.57550803,0.0001738,2]
[334025933,1722690645164,-155.0,0.00017399,2]
[334025934,1722690645175,-155.0,0.00017399,2]
[334025935,1722690645185,-155.0,0.00017399,2]
[334025936,1722690645194,-155.0,0.00017399,2]
[334025937,1722690645204,-205.75981917,0.00017399,2]
[334025938,1722690645213,-155.0,0.00017399,2]
[334025939,1722690645222,-155.60666915,0.00017399,2]
[334025940,1722690645232,-303.5770843,0.00017399,2]
[334025941,1722690645241,-531.81153519,0.00017399,2]
[334025942,1722690645251,-686.40870172,0.00017399,2]
[334025943,1722690645261,-347.37102947,0.00017399,2]
[334025944,1722690645270,-219.8681452,0.00017458,2]
[334025945,1722690645280,-200.3325257,0.00017458,2]
[334025946,1722690645289,-155.0,0.00017458,2]
[334025947,1722690645299,-293.42428643,0.00017458,2]
[334025948,1722690645312,-235.05104495,0.00017458,2]
[334025949,1722690645322,-296.93307347,0.00017458,2]
[334025950,1722690645331,-155.94145346,0.00017458,2]
[334025951,1722690645340,-155.0,0.00017458,2]
[334025952,1722690645350,-155.0,0.00017458,2]
[334025953,1722690645360,-155.0,0.00017458,2]
[334025954,1722690645369,-309.01921538,0.00017458,2]
[334025955,1722690645378,-157.19721316,0.00017458,2]
[334025956,1722690645388,-519.69271657,0.00017458,2]
[334025957,1722690645397,-110.12202693,0.00017458,2]
[334025962,1722690646695,-198.89718845,0.00017458,2]
[334025964,1722690646704,-3136.09940103,0.000175,2]
[334025966,1722690646714,-165.36567453,0.00017533,2]
[334025968,1722690646723,-476.52703085,0.00017533,2]
[334025970,1722690646732,-164.25896098,0.00017533,2]
[334025972,1722690646741,-400.0,0.00017533,2]
[334025974,1722690646751,-202.71790408,0.00017533,2]
[334025975,1722690646760,-196.9568717,0.00017533,2]
[334025977,1722690646769,-155.0,0.00017533,2]
[334025979,1722690646779,-155.0,0.00017533,2]
[334025981,1722690646788,-188.63628821,0.00017533,2]
[334025983,1722690646797,-173.08,0.0001754,2]
[334025985,1722690646806,-1089.74730436,0.000176,2]
[334025987,1722690646815,-493.20816609,0.00017608,2]
[334025989,1722690646825,-155.0,0.00017608,2]
[334025991,1722690646834,-158.86466502,0.00017608,2]
[334025993,1722690646843,-454.19419225,0.00017608,2]
[334025995,1722690646852,-380.01075921,0.00017608,2]
[334025997,1722690646862,-159.47000849,0.00017608,2]
[334025999,1722690646871,-155.0,0.00017608,2]
[334026001,1722690646880,-155.0,0.00017608,2]
[334026003,1722690646890,-363.85697976,0.00017636,2]
[334026005,1722690646899,-484.76607857,0.00017636,2]
[334026007,1722690646909,-164.23718751,0.00017636,2]
[334026009,1722690646918,-439.70755762,0.00017636,2]
[334026011,1722690646927,-359.08278976,0.00017636,2]
[334026012,1722690646936,-236.13758284,0.00017636,2]
[334026013,1722690646946,-210.87847398,0.00017739,2]
[334026014,1722690646955,-243.04057273,0.00017739,2]
[334026016,1722690646964,-155.0,0.00017739,2]
[334026018,1722690646973,-297.22909311,0.00017739,2]
[334026020,1722690646982,-321.9189007,0.00017782,2]
[334026022,1722690646992,-649.29247659,0.00017782,2]
[334026023,1722690647001,-203.23601745,0.00017782,2]
[334026025,1722690647010,-218.72259173,0.00017782,2]
[334026027,1722690647019,-649.29247659,0.00017782,2]
[334026029,1722690647031,-2000.0,0.00017807,2]
[334026031,1722690647040,-200.0,0.00017807,2]
[334026033,1722690647049,-2000.0,0.00017807,2]
[334026035,1722690647059,-200.0,0.00017807,2]
[334026037,1722690647068,-155.0,0.00017807,2]
[334026039,1722690647078,-2000.0,0.00017807,2]
[334026041,1722690647087,-200.0,0.00017807,2]
[334026043,1722690647097,-500.0,0.00017876,2]
[334026045,1722690647106,-800.0,0.00017876,2]
[334026047,1722690647116,-1000.0,0.00017876,2]
[334026049,1722690647126,-1359.89065021,0.00017975,2]
[334026051,1722690647135,-2000.0,0.00017985,2]
[334026053,1722690647144,-200.0,0.00017985,2]
[334026055,1722690647154,-2000.0,0.00017985,2]
[334026057,1722690647163,-200.0,0.00017985,2]
[334026059,1722690647173,-200.0,0.00017985,2]
[334026061,1722690647182,-450.11080974,0.00018,2]
[334026063,1722690647192,-296.15,0.00018151,2]
[334026065,1722690647201,-2000.0,0.00018165,2]
[334026066,1722690647211,-200.0,0.00018165,2]
[334026067,1722690647223,-2000.0,0.00018165,2]
[334026068,1722690647233,-200.0,0.00018165,2]
[334026069,1722690647242,-200.0,0.00018165,2]
[334026070,1722690647251,-150.0,0.00018193,2]
[334026071,1722690647261,-1893.0,0.00018193,2]
[334026072,1722690647270,-550.0,0.00018193,2]
[334026073,1722690647281,-150.384,0.00018193,2]
[334026074,1722690647290,-3287.0,0.00018193,2]
[334026075,1722690647300,-1370.0,0.00018193,2]
[334026076,1722690647310,-5126.0,0.00018193,2]
[334026077,1722690647320,-1669.0,0.00018193,2]
[334026078,1722690647329,-5835.0,0.00018193,2]
[334026079,1722690647339,-324.0,0.00018193,2]
[334026080,1722690647349,-1218.766,0.00018193,2]
[334026081,1722690647358,-1075.0,0.00018193,2]
[334026082,1722690647368,-200.0,0.0001823,2]
[334026083,1722690647377,-2000.0,0.00018347,2]
[334026084,1722690647387,-200.0,0.00018347,2]
[334026085,1722690647397,-2000.0,0.00018347,2]
[334026086,1722690647407,-200.0,0.00018347,2]
[334026087,1722690647417,-200.0,0.00018347,2]
[334026088,1722690647427,-800.0,0.00018424,2]
[334026089,1722690647437,-1000.0,0.00018424,2]
[334026090,1722690647447,-2000.0,0.0001853,2]
[334026091,1722690647457,-200.0,0.0001853,2]
[334026092,1722690647467,-2000.0,0.0001853,2]
[334026093,1722690647478,-200.0,0.0001853,2]
[334026094,1722690647488,-200.0,0.0001853,2]
[334026095,1722690647498,-1795.99273775,0.00018678,2]
[334026096,1722690647507,-743.0,0.000189,2]
[334026097,1722690647517,-500.0,0.00018972,2]
[334026098,1722690647527,-1200.0,0.00018972,2]
[334026099,1722690647537,-1400.0,0.00018972,2]
[334026100,1722690647546,-28207.9838261,0.00019,2]
[334026101,1722690647555,-211.0,0.00019055,2]
[334026102,1722690647564,-150.715,0.00019055,2]
[334026103,1722690647574,-622.889,0.00019055,2]
[334026104,1722690647583,-1925.0,0.00019055,2]
[334026105,1722690647593,-1255.0,0.00019055,2]
[334026106,1722690647602,-1582.0,0.00019055,2]
[334026107,1722690647613,-150.613,0.00019055,2]
[334026108,1722690647625,-566.165,0.00019055,2]
[334026109,1722690647635,-157.65370642,0.00019273,2]
[334026110,1722690647645,-500.0,0.00019311,2]
[334026111,1722690647655,-500.0,0.0001932,2]
[334026112,1722690647664,-500.0,0.00019329,2]
[334026113,1722690647674,-500.0,0.00019338,2]
[334026114,1722690647683,-500.0,0.00019346,2]
[334026115,1722690647696,-500.0,0.00019355,2]
[334026116,1722690647706,-500.0,0.00019364,2]
[334026117,1722690647716,-500.0,0.00019373,2]
[334026118,1722690647726,-500.0,0.00019382,2]
[334026119,1722690647735,-500.0,0.0001939,2]
[334026120,1722690647745,-500.0,0.00019399,2]
[334026121,1722690647754,-772.95782148,0.000194,2]
[334026122,1722690647764,-500.0,0.00019408,2]
[334026123,1722690647775,-500.0,0.00019417,2]
[334026124,1722690647784,-500.0,0.00019426,2]
[334026125,1722690647794,-500.0,0.00019434,2]
[334026126,1722690647805,-500.0,0.00019443,2]
[334026127,1722690647815,-500.0,0.00019452,2]
[334026128,1722690647824,-240.0,0.00019462,2]
[334026129,1722690647834,-513.37,0.00019506,2]
[334026130,1722690647844,-1200.0,0.0001952,2]
[334026131,1722690648027,-1400.0,0.0001952,2]
[334026132,1722690648037,-800.0,0.0001952,2]
[334026133,1722690648046,-1000.0,0.0001952,2]
[334026134,1722690648057,-155.0,0.00019599,2]
[334026135,1722690648067,-240.0,0.00019706,2]
[334026136,1722690648077,-155.0,0.00019725,2]
[334026137,1722690648086,-3146.03145564,0.00019726,2]
[334026138,1722690648095,-1970.57635198,0.00019799,2]
[334026139,1722690648104,-121844.44282045,0.000198,5]
[334026140,1722690648114,-240.0,0.00019949,2]
[334026141,1722690648123,-370.25397205,0.00019999,2]
[334026142,1722690648133,-306.54421766,0.00019999,2]
[334026143,1722690648143,-155.0,0.00019999,2]
[334026144,1722690648153,-500.0,0.0002,2]
[334026145,1722690648163,-505.0,0.0002,2]
[334026146,1722690648173,-6288.50435063,0.0002,2]
[334026147,1722690648183,-155.0,0.0002,2]
[334026148,1722690648193,-155.7369794,0.0002,2]
[334026149,1722690648204,-500.0,0.00020068,2]
[334026150,1722690648213,-1200.0,0.00020068,2]
[334026151,1722690648223,-1400.0,0.00020068,2]
[334026152,1722690648233,-240.0,0.00020192,2]
[334026153,1722690648242,-2023.34906436,0.00020222,2]
[334026154,1722690648252,-1795.99273775,0.00020233,2]
[334026155,1722690648261,-301.572,0.00020334,2]
[334026156,1722690648271,-240.0,0.00020435,2]
[334026157,1722690648281,-212.13,0.00020447,2]
[334026158,1722690648291,-800.0,0.00020616,2]
[334026159,1722690648301,-1000.0,0.00020616,2]
[334026160,1722690648310,-1200.0,0.00020616,2]
[334026161,1722690648319,-1400.0,0.00020616,2]
[334026162,1722690648329,-500.0,0.00020641,2]
[334026163,1722690648338,-160.42287042,0.00020831,2]
[334026164,1722690648348,-1837.14381,0.00021,2]
[334026165,1722690648358,-500.0,0.00021164,2]
[334026166,1722690648367,-1200.0,0.00021164,2]
[334026167,1722690648379,-1400.0,0.00021164,2]
[334026168,1722690648388,-150.0,0.00021193,2]
[334026169,1722690648397,-1893.0,0.00021193,2]
[334026170,1722690648406,-550.0,0.00021193,2]
[334026171,1722690648416,-150.0,0.00021193,2]
[334026172,1722690648425,-3287.0,0.00021193,2]
[334026173,1722690648434,-192.881,0.00021193,2]
[334026174,1722690648444,-494.72,0.00021193,2]
[334026175,1722690648453,-288.0,0.00021193,2]
[334026176,1722690648463,-1075.0,0.00021193,2]
[334026177,1722690648472,-500.0,0.00021234,2]
[334026178,1722690648482,-2000.0,0.000213,2]
[334026179,1722690648491,-500.0,0.00021323,2]
[334026180,1722690648500,-585.06639726,0.0002151,2]
[334026181,1722690648510,-800.0,0.00021712,2]
[334026182,1722690648519,-1000.0,0.00021712,2]
[334026183,1722690648528,-1200.0,0.00021712,2]
[334026184,1722690648538,-1400.0,0.00021712,2]
[334026185,1722690648547,-513.37,0.00021763,2]
[334026186,1722690648556,-2000.0,0.000219,2]
[334026187,1722690648565,-161.60365612,0.000219,2]
[334026188,1722690648575,-2000.0,0.00021917,2]
[334026189,1722690648584,-1228.93,0.00021918,2]
[334026190,1722690648593,-150.0,0.00021918,2]
[334026191,1722690648602,-500.0,0.00021918,2]
[334026192,1722690648616,-500.0,0.00021918,2]
[334026193,1722690648625,-500.0,0.00021918,2]
[334026194,1722690648634,-500.0,0.00021918,2]
[334026195,1722690648643,-500.0,0.00021918,2]
[334026196,1722690648654,-500.0,0.00021918,2]
[334026197,1722690648663,-173.0,0.00022,2]
[334026198,1722690648673,-1765.963,0.00022055,2]
[334026199,1722690648682,-1255.0,0.00022055,2]
[334026200,1722690648694,-365.768,0.00022055,2]
[334026201,1722690648704,-589.77171173,0.00022067,2]
[334026202,1722690648713,-157.65370641,0.00022087,2]
[334026203,1722690648723,-2000.0,0.00022191,2]
[334026204,1722690648732,-500.0,0.0002226,2]
[334026205,1722690648741,-2000.0,0.000223,2]
[334026206,1722690648750,-500.0,0.00022342,2]
[334026207,1722690648759,-1970.57635196,0.0002235,2]
[334026208,1722690648768,-2000.0,0.00022465,2]
[334026209,1722690648778,-150.0,0.00022495,2]
[334026210,1722690648787,-152.987167,0.00022671,2]
[334026211,1722690648796,-2000.0,0.00022739,2]
[334026212,1722690648806,-500.0,0.00022786,2]
[334026213,1722690648816,-800.0,0.00022808,2]
[334026214,1722690648825,-1000.0,0.00022808,2]
[334026215,1722690648835,-1200.0,0.00022808,2]
[334026216,1722690648844,-1400.0,0.00022808,2]
[334026217,1722690648853,-183.0,0.0002282,9]
[334026218,1722690648862,-152.987167,0.00022831,2]
[334026219,1722690648872,-500.0,0.00022862,2]
[334026220,1722690648881,-200.0,0.00023,2]
[334026221,1722690648890,-263.18,0.0002301,2]
[334026222,1722690648899,-2000.0,0.00023013,2]
[334026223,1722690648908,-173.0,0.00023014,2]
[334026224,1722690648917,-150.0,0.00023071,2]
[334026225,1722690648926,-728.78640467,0.00023103,2]
[334026226,1722690648935,-180.0,0.00023205,2]
[334026227,1722690648944,-2000.0,0.00023287,2]
[334026228,1722690648953,-2000.0,0.000233,2]
[334026229,1722690648962,-500.0,0.00023356,2]
[334026230,1722690648971,-366.9755387,0.00023451,2]
[334026231,1722690648981,-500.0,0.0002351,2]
[334026232,1722690648990,-1930.20669701,0.00023555,2]
[334026233,1722690648999,-150.0,0.00023648,2]
[334026234,1722690649009,-356.15,0.00023734,2]
[334026235,1722690649018,-530.42,0.00023734,2]
[334026236,1722690649028,-150.0,0.00023734,2]
[334026237,1722690649037,-425.91,0.00023734,2]
[334026238,1722690649047,-530.42,0.00023734,2]
[334026239,1722690649057,-150.0,0.00023734,2]
[334026240,1722690649066,-356.15,0.00023734,2]
[334026241,1722690649075,-425.91,0.00023734,2]
[334026242,1722690649084,-530.42,0.00023734,2]
[334026243,1722690649094,-530.42,0.00023734,2]
[334026244,1722690649103,-150.0,0.00023734,2]
[334026245,1722690649112,-356.15,0.00023734,2]
[334026246,1722690649121,-530.42,0.00023734,2]
[334026247,1722690649131,-150.0,0.00023734,2]
[334026248,1722690649140,-356.15,0.00023734,2]
[334026249,1722690649150,-374.5,0.00023734,2]